Cogmind - Beta 13 @@@ ROGUE MODE // 2024.05.27 @ 23:06:27 Player: Decinym Result: Destroyed by CL-ANK with CL-ANK's Mallet Performance ------------- Evolutions (1) 500 Regions Visited (6) 1200 Robots Destroyed (55) 275 Value Destroyed (1258) 1258 Prototype IDs (28) 560 Alien Tech Used (0) 0 Bonus (335) 335 TOTAL SCORE: 4128 Bonus ------- Follower Combat Kills 35 Aligned with FarCom 300 Cogmind --------- Core Integrity 0/400 Matter 257/300 Energy 92/100 System Corruption 4% Temperature Cool (0) Movement Treading (320) Ox2 Location -8/Mines Parts ------- > --- POWER (1) -------- (None) > --- PROPULSION (3) --- Light Treads > --- UTILITY (3) ------ Experimental Heat Sink High-capacity Storage Unit Targeting Computer > --- WEAPON (2) ------- 8R-AWN's Boregun 8R-AWN's Boregun > --- INVENTORY (20) --- Light Deuterium Engine Large Matter Pod (150) Large Matter Pod (102) Structural Scanner Heavy Assault Rifle Heavy Assault Rifle Heavy Assault Rifle Heavy Assault Rifle Slug Cannon Rocket Launcher Mini Grenade Launcher Peak State ------------ > --- POWER ------------ Improved Ion Engine > --- PROPULSION ------- Light Treads Light Treads > --- UTILITY ---------- Experimental Heat Sink High-capacity Storage Unit Targeting Computer > --- WEAPON ----------- 8R-AWN's Boregun 8R-AWN's Boregun > --- INVENTORY -------- Light Deuterium Engine Large Matter Pod Large Matter Pod Structural Scanner YOLO Cannon Heavy Assault Rifle Heavy Assault Rifle Heavy Assault Rifle Heavy Assault Rifle Slug Cannon Rocket Launcher Mini Grenade Launcher [Rating: 37] Favorites ----------- Power Cooled Ion Engine Engine Cooled Ion Engine Propulsion Light Treads Treads Light Treads Leg Aluminum Leg Wheel Wheel Utility Large Storage Unit Device Experimental Heat Sink Storage Large Storage Unit Processor Targeting Computer Protection Improved Light Armor Plating Weapon Heavy Assault Rifle Energy Gun Improved Medium Laser Ballistic Gun Heavy Assault Rifle Ballistic Cannon Light Cannon Launcher Mini Grenade Launcher Slashing Weapon Longsword +1 Build | -11 -10 -10 -9 -9 -9 -8 ------- Run | Yrd Mat Min Mat Min Exi Min Slots Evolved 2 | . . . 2 . . . Power . | . . . . . . . Propulsion 1 | . . . 1 . . . Utility 1 | . . . 1 . . . Weapon . | . . . . . . . Parts Attached 70 | . 7 3 31 17 12 . Power 8 | . 1 . 5 1 1 . Engine 8 | . 1 . 5 1 1 . Core . | . . . . . . . Reactor . | . . . . . . . Propulsion 19 | . 2 . 7 8 2 . Treads 18 | . 2 . 7 7 2 . Leg . | . . . . . . . Wheel 1 | . . . . 1 . . Hover . | . . . . . . . Flight . | . . . . . . . Utility 13 | . 2 . 4 3 4 . Device 1 | . . . . . 1 . Storage 5 | . 1 . 1 . 3 . Processor 4 | . 1 . 2 1 . . Hackware . | . . . . . . . Protection 3 | . . . 1 2 . . Artifact . | . . . . . . . Weapon 30 | . 2 3 15 5 5 . Energy Gun 9 | . . . 7 2 . . Energy Cannon . | . . . . . . . Ballistic Gun 8 | . 1 1 2 2 2 . Ballistic Cannon 4 | . 1 1 1 . 1 . Launcher 8 | . . 1 5 1 1 . Special Weapon . | . . . . . . . Impact Weapon . | . . . . . . . Slashing Weapon 1 | . . . . . 1 . Piercing Weapon . | . . . . . . . Special Melee Weapon . | . . . . . . . Unidentified Prototypes 5 | . . . 3 . 2 . Parts Lost 22 | . 2 . 2 11 5 2 Power 3 | . . . . 1 1 1 Propulsion 11 | . 1 . 1 5 3 1 Utility 4 | . . . . 3 1 . Weapon 4 | . 1 . 1 2 . . Highest Loss Streak 11 | . 2 . 1 11 5 2 To Critical Strikes 4 | . . . . . 3 1 Average Slot Usage (%) 93 | . 96 100 98 91 81 88 Engine 11 | . 14 14 10 11 11 11 Treads 28 | . 6 28 32 32 31 22 Leg 2 | . 21 . . . . . Storage 11 | . 14 14 11 11 11 11 Processor 12 | . 10 14 21 3 11 11 Protection 4 | . . . . 10 9 . Energy Gun 3 | . . . 14 1 . . Ballistic Gun 12 | . 24 14 5 19 3 22 Ballistic Cannon 3 | . 3 13 1 . 1 . Naked Turns . | . . . . . . . Heaviest Build 63 | 13 30 29 35 39 63 59 Greatest Support 63 | 20 40 40 60 63 63 40 Greatest Overweight (x) 3 | . 2 . . 3 1 1 Average Overweight (x) . | . . . . . . 1 Largest Inventory Capacity 20 | . 15 15 15 15 20 20 Average Capacity 15 | . 14 15 15 15 17 20 Most Carried 20 | . 11 12 15 15 20 11 Average Carried 11 | . 7 11 13 9 15 11 Final Capacity 20 | 8 15 15 15 15 20 20 Final Carried 15 | 6 11 12 15 10 11 11 Class Distribution -------------------- 76% | Mutant 23% | Scavenger-Mutant Dominant Class ---------------- Mutant | -10/Materials Mutant | -10/Mines Mutant | -9/Materials Scavenger-Mutant | -9/Mines Mutant | -9/Exiles Mutant | -8/Mines Resources | -11 -10 -10 -9 -9 -9 -8 ----------- Run | Yrd Mat Min Mat Min Exi Min Matter Collected 1678 | 200 166 217 439 426 194 36 Remotely . | . . . . . . . Salvage Created 1607 | . 341 179 927 96 8 56 Parts 91 | . 18 13 54 1 . 5 Haulers Intercepted 5 | . 1 . 4 . . . Recyclers Shooed 4 | . 1 . 3 . . . Parts Field Recycled . | . . . . . . . Retrieved Matter . | . . . . . . . Parts Self-Destructed . | . . . . . . . Prevented . | . . . . . . . Kills | -11 -10 -10 -9 -9 -9 -8 ------- Run | Yrd Mat Min Mat Min Exi Min Combat Hostiles Destroyed 55 | . 7 9 24 10 2 3 Guns 24 | . 6 2 8 5 . 3 Cannons 8 | . 1 5 2 . . . AOE 23 | . . 2 14 5 2 . Classes Destroyed 10 | . 2 2 4 2 . . Worker 1 | . . . 1 . . . Builder 1 | . . . 1 . . . Hauler 5 | . 1 . 4 . . . Recycler 3 | . . 1 2 . . . Watcher 1 | . . . 1 . . . Swarmer 21 | . . 7 11 . . 3 Grunt 17 | . 7 2 8 . . . Sentry 5 | . . . 5 . . . Demolisher 1 | . . . . 1 . . Assembled 11 | . . . . 9 2 . Best Kill Streak 9 | . 4 4 9 6 2 3 Combat Bots Only 6 | . 4 3 6 6 2 3 Max Kills in Single Turn 4 | . 1 2 4 4 2 2 Gunslinging . | . . . . . . . Exploded 4 | . . 2 3 4 2 . Melee . | . . . . . . . Uniques/NPCs Destroyed . | . . . . . . . Combat | -11 -10 -10 -9 -9 -9 -8 -------- Run | Yrd Mat Min Mat Min Exi Min Hostile Shots Fired 331 | . 55 54 89 79 47 7 Missed 90 | . 18 22 22 18 9 1 Damage Taken 3880 | . 488 291 753 1452 639 257 Core 569 | . 76 47 77 181 130 58 Absorbed by Shields . | . . . . . . . Regen/Repaired (Parts) 260 | . . . 260 . . . Core Remaining (%) 75 | 100 . 50 . . . . Volleys Fired 176 | . 33 28 67 39 2 7 Largest 2 | . 2 2 2 2 1 2 Hottest 112 | . 55 55 112 112 48 60 Shots Fired 334 | . 66 55 123 73 3 14 Gun 274 | . 61 27 102 69 1 14 Cannon 44 | . 5 26 12 . 1 . Launcher 16 | . . 2 9 4 1 . Special . | . . . . . . . Kinetic 242 | . 66 53 50 57 2 14 Thermal 76 | . . . 64 12 . . Explosive 16 | . . 2 9 4 1 . Electromagnetic . | . . . . . . . Robot Hit Streak 12 | . 8 8 12 9 . 9 Robot Miss Streak 8 | . 4 8 4 5 1 2 Penetration Max 1 | . . . . . . 1 Secondary Targets 4 | . 3 . . 1 . . Max Gunslinging Chain 1 | . 1 . . 1 . . Shots Hit Robots 233 | . 48 27 79 41 27 11 Core Hits 110 | . 20 13 46 20 6 5 Critical Kills 2 | . 1 . . . . 1 Critical Parts Destroyed 3 | . . . . . . 3 Critical Strikes 13 | . 2 . 2 2 3 4 Burn 4 | . . . 2 2 . . Destroy 5 | . 1 . . . . 4 Blast 1 | . 1 . . . . . Sever 3 | . . . . . 3 . Melee Attacks 28 | . . . . . 28 . Impact . | . . . . . . . Slashing 28 | . . . . . 28 . Piercing . | . . . . . . . Sneak Attacks . | . . . . . . . Combat Hostiles . | . . . . . . . Follow-up Attacks . | . . . . . . . Damage Inflicted 5983 | . 542 526 2500 910 1308 197 Guns 2394 | . 464 88 1028 617 . 197 Cannons 484 | . 55 301 128 . . . Explosions 1846 | . . 137 1339 274 96 . Melee 1212 | . . . . . 1212 . Ramming 47 | . 23 . 5 19 . . Kinetic 1890 | . 519 389 336 449 . 197 Thermal 1273 | . . . 1105 168 . . Explosive 1554 | . . 137 1047 274 96 . Electromagnetic 7 | . . . 7 . . . Impact . | . . . . . . . Slashing 1212 | . . . . . 1212 . Piercing . | . . . . . . . Highest Corruption 4 | . . . . 4 4 4 Average Corruption 4 | . . . . 4 4 4 Corruption Purged . | . . . . . . . Corruption Blocked . | . . . . . . . Effects 49 | . . . . 26 23 . Message Errors 12 | . . . . 8 4 . Matter Fused 20 | . . . . 8 12 . Heat Flow Errors 3 | . . . . 2 1 . Energy Discharges 5 | . . . . 3 2 . Parts Rejected 1 | . . . . 1 . . Parts Fused 1 | . . . . 1 . . Data Loss (minor) 3 | . . . . . 3 . Data Loss (major) 1 | . . . . 1 . . Misfires 1 | . . . . . 1 . Alerts 1 | . . . . 1 . . Weapon Failures 1 | . . . . 1 . . Overload Shots . | . . . . . . . Overflow Damage 90 | . . . 90 . . . Projectiles 9 | . . . 9 . . . Explosions 81 | . . . 81 . . . Melee . | . . . . . . . Knockbacks 4 | . 1 2 . 1 . . Impact 2 | . 1 . . 1 . . Kinetic 2 | . . 2 . . . . Secondary . | . . . . . . . Self-Inflicted Damage 23 | . . . 23 . . . Shots 1 | . . . 1 . . . Rammed 3 | . . . 1 2 . . Targets Rammed 7 | . 4 . 1 2 . . Kicked 4 | . 4 . . . . . Crushed . | . . . . . . . Highest Temperature 494 | . 43 49 494 231 92 . Average Temperature 64 | . 14 14 92 59 35 . Received Heat Transfer 687 | . 288 57 162 180 . . Siege Activations . | . . . . . . . Robots Corrupted . | . . . . . . . Combat Hostiles . | . . . . . . . Parts Fried . | . . . . . . . Impact Corruptions . | . . . . . . . Robots Melted . | . . . . . . . Combat Hostiles . | . . . . . . . Parts Melted 4 | . . . 4 . . . Heat Transferred 2766 | . . . 2248 518 . . Parts Sabotaged . | . . . . . . . Parts Stolen . | . . . . . . . Parts Stripped . | . . . . . . . Power Chain Reactions 1 | . . . 1 . . . Alert | -11 -10 -10 -9 -9 -9 -8 ------- Run | Yrd Mat Min Mat Min Exi Min Peak Influence 468 | . 155 242 468 187 . 106 Initial 182 | . . 31 35 182 . . Average 121 | . 61 121 244 39 . 86 Maximum Alert Level 2 | . . 1 2 . . . Low Security (%) 75 | . 100 85 26 100 . 100 Level 1 23 | . . 14 72 . . . Level 2 . | . . . . . . . Level 3 . | . . . . . . . Level 4 . | . . . . . . . Level 5 . | . . . . . . . High Security . | . . . . . . . Max Security . | . . . . . . . Squads Dispatched 5 | . 1 . 4 . . . Investigation . | . . . . . . . Extermination . | . . . . . . . Reinforcement 5 | . 1 . 4 . . . Assault . | . . . . . . . Garrison . | . . . . . . . Intercept . | . . . . . . . Searches Triggered . | . . . . . . . Construction Impeded 1 | . . . 1 . . . Haulers Reinforced . | . . . . . . . Active Scanning Responses . | . . . . . . . Cargo Convoy Interrupts . | . . . . . . . Stealth | -11 -10 -10 -9 -9 -9 -8 --------- Run | Yrd Mat Min Mat Min Exi Min Distress Signals 4 | . . . 4 . . . Communications Jammed . | . . . . . . . Distress Signals . | . . . . . . . Times Spotted 93 | . 14 17 35 17 6 4 Peak Tracking Total 10 | . 5 3 4 10 9 3 Tactical Retreats 7 | . . 2 . 1 1 3 Traps | -11 -10 -10 -9 -9 -9 -8 ------- Run | Yrd Mat Min Mat Min Exi Min Traps Triggered 2 | . . . 2 . . . Indirectly . | . . . . . . . Trap Hack Attempts . | . . . . . . . Triggered . | . . . . . . . Disarmed . | . . . . . . . Reprogrammed . | . . . . . . . Reused . | . . . . . . . Traps Extracted . | . . . . . . . Installed . | . . . . . . . Triggered . | . . . . . . . Machines | -11 -10 -10 -9 -9 -9 -8 ---------- Run | Yrd Mat Min Mat Min Exi Min Machines Disabled 10 | . . 1 8 . 1 . Max in Single Turn 6 | . . . 6 . 1 . Machines Repaired . | . . . . . . . Machines Dismantled . | . . . . . . . Machines Sabotaged . | . . . . . . . Overloaded Fab Kills . | . . . . . . . Hacking | -11 -10 -10 -9 -9 -9 -8 --------- Run | Yrd Mat Min Mat Min Exi Min Machines Accessed 10 | . 2 . 6 . 2 . Terminals 6 | . 2 . 4 . . . Fabricators . | . . . . . . . Repair Stations 2 | . . . 2 . . . Recycling Units . | . . . . . . . Scanalyzers . | . . . . . . . Garrison Access . | . . . . . . . Total Hacks 24 | . 6 . 16 . 2 . Successful 15 | . 4 . 9 . 2 . Failed 9 | . 2 . 7 . . . Catastrophic 5 | . 2 . 3 . . . Database Lockouts . | . . . . . . . Manual 16 | . 6 . 9 . 1 . Terminals 17 | . 6 . 11 . . . Fabricators . | . . . . . . . Repair Stations 5 | . . . 5 . . . Recycling Units . | . . . . . . . Scanalyzers . | . . . . . . . Garrison Access . | . . . . . . . Terminal Hacks 10 | . 3 . 5 . 2 . Record 1 | . . . . . 1 . Part Schematic 2 | . 2 . . . . . Robot Analysis 2 | . . . 2 . . . Branch Access Points 2 | . 1 . 1 . . . Hauler Manifests 1 | . . . 1 . . . Zone Layout 1 | . . . 1 . . . Derelict Proto ID Bank 1 | . . . . . 1 . Fabricator Hacks . | . . . . . . . Repair Station Hacks 4 | . . . 4 . . . Scan Component 2 | . . . 2 . . . Repair 2 | . . . 2 . . . Recycling Unit Hacks . | . . . . . . . Scanalyzer . | . . . . . . . Garrison Access Hacks . | . . . . . . . Unauthorized Hacks 1 | . 1 . . . . . Terminals 1 | . 1 . . . . . Botnet 1 | . 1 . . . . . Fabricators . | . . . . . . . Repair Stations . | . . . . . . . Recycling Units . | . . . . . . . Scanalyzers . | . . . . . . . Garrison Access . | . . . . . . . Data Cores Recovered . | . . . . . . . Used . | . . . . . . . Hacking Detections 7 | . 2 . 5 . . . Full Trace Events . | . . . . . . . Feedback Events . | . . . . . . . Feedback Blocked . | . . . . . . . Robot Schematics Acquired . | . . . . . . . Robots Built . | . . . . . . . Authchips . | . . . . . . . Time . | . . . . . . . Total Robot Build Rating . | . . . . . . . Part Schematics Acquired 2 | . 2 . . . . . Parts Built . | . . . . . . . Authchips . | . . . . . . . Time . | . . . . . . . Total Part Build Rating . | . . . . . . . Parts Repaired 2 | . . . 2 . . . Time 52 | . . . 52 . . . Parts Recycled . | . . . . . . . Recycled Matter . | . . . . . . . Retrieved Matter . | . . . . . . . Retrieved Components . | . . . . . . . Parts Scanalyzed . | . . . . . . . Part Schematics Acquired . | . . . . . . . Parts Damaged . | . . . . . . . Bothacking | -11 -10 -10 -9 -9 -9 -8 ------------ Run | Yrd Mat Min Mat Min Exi Min Used RIF Installer . | . . . . . . . Robots Hacked . | . . . . . . . Non-combat . | . . . . . . . Combat . | . . . . . . . Robot Hacks Applied . | . . . . . . . Relay Couplers Released . | . . . . . . . Fabnet Peak Effective % . | . . . . . . . Robots Rewired . | . . . . . . . Allies Hacked . | . . . . . . . Hacks Repelled . | . . . . . . . Allies | -11 -10 -10 -9 -9 -9 -8 -------- Run | Yrd Mat Min Mat Min Exi Min Total Allies 4 | . . 1 . 3 . . Largest Group 3 | . . 1 . 3 3 . Highest-Rated Group 40 | . . 31 . 40 40 . Highest-Rated Ally 31 | . . 31 . 16 16 . Total Orders 3 | . . . . . 3 . STAY 2 | . . . . . 2 . FOLLOW 1 | . . . . . 1 . Ally Attacks 27 | . . 10 . 3 14 . Total Damage 243 | . . 146 . 27 70 . Kills 8 | . . 5 . 1 2 . Allies Corrupted . | . . . . . . . Allies Melted . | . . . . . . . Intel | -11 -10 -10 -9 -9 -9 -8 ------- Run | Yrd Mat Min Mat Min Exi Min Robot Analysis Total 2 | . . . 2 . . . Derelict Logs Recovered 3 | . . 2 . 1 . . Drone Launches . | . . . . . . . Drone Recoveries . | . . . . . . . Exploration | -11 -10 -10 -9 -9 -9 -8 ------------- Run | Yrd Mat Min Mat Min Exi Min Turns Passed 5582 | . 662 1034 1250 1346 1154 136 Spaces Moved 2870 | 1 297 595 579 755 595 48 Core . | . . . . . . . Treads 2637 | . 83 595 579 737 595 48 Legs 215 | 1 214 . . . . . Wheels 18 | . . . . 18 . . Hover . | . . . . . . . Flight . | . . . . . . . Fastest Speed 120 | 120 120 160 160 125 160 240 Average Speed 165 | 120 181 160 160 159 169 240 Slowest Speed 260 | 120 260 160 160 160 240 240 Overloaded Moves . | . . . . . . . Propulsion Burnouts . | . . . . . . . Robots Hopped . | . . . . . . . Cave-ins Triggered . | . . . . . . . Exploration Rate (%) 55 | 2 44 92 58 98 71 22 Regions Visited 6 Branch Regions 4 Pre-discovered Areas 2 | . . 1 . . 1 . Known Exits Taken 2 | . 1 . 1 . . . Unknown Exits Taken 4 | 1 . 1 . 1 1 . Scrap Searched 4 | . . 1 . 3 . . Spaces Dug 17 | . . . 17 . . . Terrain Destroyed 93 | . . 9 61 17 2 4 Melee . | . . . . . . . Projectile 4 | . . . . . . 4 AOE 89 | . . 9 61 17 2 . Terrain Rammed . | . . . . . . . Walls Destroyed . | . . . . . . . Machines Disabled . | . . . . . . . Actions | -11 -10 -10 -9 -9 -9 -8 --------- Run | Yrd Mat Min Mat Min Exi Min Total 3359 | . 356 626 785 821 714 57 Wait 141 | . 8 . 70 3 58 2 Move 2864 | . 296 594 578 754 594 48 Hop . | . . . . . . . Pick Up 35 | . 5 1 16 5 8 . Fast Attach 26 | . 5 . 15 3 3 . Attach 19 | . 1 . 3 9 6 . Detach 4 | . . . . . 4 . Swap 25 | . 1 3 13 5 3 . Drop 34 | . 3 . 22 1 8 . Fire 176 | . 33 28 67 39 2 7 Melee 28 | . . . . . 28 . Ram . | . . . . . . . Kick 4 | . 4 . . . . . Crush 3 | . . . 1 2 . . Escape Stasis . | . . . . . . . Rewire . | . . . . . . . Trap . | . . . . . . . Miscellaneous . | . . . . . . . Route ------- -11/Scrapyard -10/Materials (discovered 3 exits: *Mat / *Min x2) -10/Mines (discovered 2 exits: *Mat x2) -9/Materials (discovered 3 exits: [*Mat] / *Min / Sto) -9/Mines (discovered 3 exits: [*Mat x2] / *Exi) -9/Exiles -8/Mines History --------- Turn | Location | Event 1 | -11/Scrapyard | Discovered new exit (range 0) 1 | -11/Scrapyard | Entered Materials 166 | -10/Materials | Discovered new exit (range 8) 307 | -10/Materials | Build established: Mutant 608 | -10/Materials | Discovered new exit (range 16) 611 | -10/Materials | Identified exit to Mines 663 | -10/Materials | Entered Mines 670 | -10/Mines | Received a Rocket Launcher from a helpful Derelict 685 | -10/Mines | Discovered new exit (range 14) 776 | -10/Mines | Discovered new exit (range 8) 955 | -10/Mines | Learned location of Storage (-9) 1120 | -10/Mines | Received a Mining Laser from a helpful Derelict 1273 | -10/Mines | Learned 2 Materials zone layouts 1697 | -10/Mines | Entered Materials 1697 | -9/Materials | Evolved 2 slots: Propulsion x1, Utility x1 1890 | -9/Materials | Discovered new exit (range 16) 2070 | -9/Materials | Repaired Lgt. Treads 2486 | -9/Materials | Repaired Lgt. Treads 2727 | -9/Materials | Identified exit to Mines 2727 | -9/Materials | Identified exit to Storage 2947 | -9/Materials | Entered Mines 3007 | -9/Mines | Assembled infested the area 3012 | -9/Mines | Assisted by a Guerilla fighting off Assembled 3057 | -9/Mines | Core integrity fell below 50% 3106 | -9/Mines | Lost 11 parts (1p5n3u2w) 3372 | -9/Mines | Learned Materials emergency access door positions 3399 | -9/Mines | Build established: Scavenger-Mutant 3471 | -9/Mines | Discovered new exit (range 12) 3559 | -9/Mines | A weapon hastily lodged in a ceiling crevice suddenly fell to the ground 3877 | -9/Mines | Assisted by bots powering up and referring to "LRC-V3" 3955 | -9/Mines | Discovered new exit (range 6) 4285 | -9/Mines | Deemed a non-threat by the Exiles lab entrance 4287 | -9/Mines | Discovered new exit (range 5) 4293 | -9/Mines | Entered Exiles 4293 | -9/Exiles | Accompanied by 3 allies 4339 | -9/Exiles | Met 8R-AWN 4365 | -9/Exiles | Met EX-HEX 4413 | -9/Exiles | Met EX-BIN 4435 | -9/Exiles | Aligned with FarCom system 4437 | -9/Exiles | Given EX-Vault access code 4477 | -9/Exiles | Opened EX-Vault 4487 | -9/Exiles | Found Longsword +1 4521 | -9/Exiles | Warned to stay clear of 0b10 Research branches 4576 | -9/Exiles | Met EX-DEC 4582 | -9/Exiles | Learned location of Zion (-6) 4602 | -9/Exiles | Build established: Mutant 4923 | -9/Exiles | Found YOLO Cannon 5110 | -9/Exiles | Attacked by the Exiles 5242 | -9/Exiles | Core integrity fell below 20% 5285 | -9/Exiles | Found Prototype Ballistic Gun 5285 | -9/Exiles | Identified 8R-AWN's Boregun 5296 | -9/Exiles | Lost 5 parts (1p3n1u) 5308 | -9/Exiles | Found 8R-AWN's Boregun 5415 | -9/Exiles | Discovered new exit (range 10) 5447 | -9/Exiles | Entered Mines 5571 | -8/Mines | CL-ANK came to Exiles' defense 5583 | -8/Mines | Destroyed by CL-ANK with CL-ANK's Mallet Last Messages --------------- 05574_ HV Slug penetrates Wall. 05574_ HV Slug penetrates CL-ANK. 05574_ HV Slug penetrates Wall. 05577_ HV Slug penetrates CL-ANK. 05577_ HV Slug penetrates Wall. 05577_ HV Slug penetrates CL-ANK. 05577_ HV Slug penetrates Wall. 05580_ HV Slug penetrates CL-ANK. 05580_ HV Slug penetrates Wall. 05580_ HV Slug penetrates CL-ANK. 05580_ CL-ANK suffers critical hit (Destroy). 05580_ Destroyed Force Booster. 05580_ HV Slug penetrates Wall. 05580_ Critical hit (Smash). 05580_ Lgt. Treads destroyed. 05580_ Imp. Ion Engine destroyed. 05583_ HV Slug penetrates CL-ANK. 05583_ HV Slug penetrates Wall. 05583_ HV Slug penetrates CL-ANK. 05583_ HV Slug penetrates Wall. Map ----- +----------------------------------------------------+ | ????????????????????????? #??? | | ????????????????????????? #??? | | ???????????????????????## ##?? | | ????????????????????#### #?? | | ???????????????????## #?? | | ???????????###?????# ??? | | ??????????## #????# #??? | | ??????##### ????? #??? | | ?????? ##???# ##?? | | ??# ##??# #?? | | ??? #### #?? | | ???? ## #?? | | ????# ???# #?? | | ???## ????# #?? | | ???# ????## ## ##? | | ???# ##??## ##### #? | | ???# #### ###???## #? | | ????# ## ##??????## #? | | ?????# ##???????#;# #? | | ?????# #????????# # #? | | ?????## #????????#;# #? | | ??????## #????????# #? | | ??????## ##???????# #? | | ?????## #???????# ###? | | ?????# #??????##b #??? | | ?????# ##??????# @ #??? | | ?????# #???????# #??? | | ?????## #### #?###???# #??? | | ??????###???# ## #???# #??? | | ????????????# #???# ??? | | ???????????## #???# ??? | | ?????????### # #???## ##?? | | ????????## ####????####??? | | ????????# #####?????????? | | ????????# ##????????? | | ????????## % #????????? | | ?????????## = #????????? | | ??????????## * = #????????? | | ???????????## ## ##????????? | | ????????????#####?###?????????? | | ??????????????????????????????? | | ??????????????????????????????? | | | | | | | | | | | | | | | | | +----------------------------------------------------+ Best States ------------- Heat Dissipation 54 Energy Generation 14 Energy Capacity 280 Matter Stores 345 Matter Capacity 450 Sight Range 16 Terrain Scan Density 10 Armor Coverage 150 Evasion (%) 55 Targeting Accuracy 11 Recoil Reduction 3 Item Schematics ----------------- Cargo Storage Unit | -10/Materials | Hacked Huge Storage Unit | -10/Materials | Hacked Robot Schematics ------------------ None Fabricated ------------ Nothing Alien Tech Used ----------------- None Achievements -------------- None Challenges ------------ None Game ------ Seed PhysicsPulseScreen Manual? 0 Play Time 00:26:01 Cumulative 396.7 hours Start 2024.05.25 @ 21:24:34 End 2024.05.27 @ 23:06:27 Sessions 3 Manual Loads 0 Difficulty Rogue Special Mode None Game No. 406 Rogue 406 Adventurer 0 Explorer 0 Win Type - Total 30 Types 16/3/5/1/2/0/3/0/0 Lore% 89 Gallery% 89 Achievement% 82 Wizard Run 0 Options --------- Layout 0 ASCII 0 Keyboard 0 Movement Arrows Keybinds 0 Fullscreen 2 Font 24/Smallcaps Map View 76x50 Zoom Use 0% Tactical HUD 1 Map Filters NONE Filters NONE Steam 1 RUN: de473854-28ea-444d-8059-1fd5743f933f